fUST/lending_fUST_20260312
["ID","MTS","AMOUNT","RATE_DAILY","PERIOD"]
[408218905,1773253839707,-1983.371167,8.817e-05,2]
[408218907,1773253839716,-500.0,8.822e-05,2]
[408218908,1773253839725,-500.0,8.822e-05,2]
[408218909,1773253839734,-478.0,8.822e-05,2]
[408218910,1773253839743,-500.0,8.877e-05,2]
[408218911,1773253839753,-500.0,8.877e-05,2]
[408218912,1773253839762,-478.0,8.877e-05,2]
[408218913,1773253839771,-500.0,8.931e-05,2]
[408218914,1773253839780,-500.0,8.931e-05,2]
[408218915,1773253839790,-478.0,8.931e-05,2]
[408218916,1773253839799,-500.0,8.986e-05,2]
[408218917,1773253839808,-500.0,8.986e-05,2]
[408218918,1773253839818,-478.0,8.986e-05,2]
[408218919,1773253839827,-5000.0,9e-05,2]
[408218920,1773253839837,-242.4589223,9.041e-05,2]
[408218921,1773253839846,-500.0,9.041e-05,2]
[408218922,1773253839855,-478.0,9.041e-05,2]
[408218923,1773253839865,-500.0,9.041e-05,2]
[408218924,1773253839874,-578.20924308,9.095e-05,2]
[408218926,1773253839883,-2312.83697232,9.095e-05,2]
[408218927,1773253839892,-500.0,9.096e-05,2]
[408218928,1773253839901,-478.0,9.096e-05,2]
[408218929,1773253839910,-497.06778548,9.151e-05,2]
[408218930,1773253839919,-478.0,9.151e-05,2]
[408218931,1773253839928,-1983.371167,9.159e-05,2]
[408218932,1773253839937,-478.0,9.205e-05,2]
[408218933,1773253839946,-2000.0,9.216e-05,2]
[408218934,1773253839955,-1225.1684654,9.229e-05,2]
[408218935,1773253839964,-478.0,9.26e-05,2]
[408218936,1773253839974,-2000.0,9.3e-05,2]
[408218937,1773253839983,-720.0,9.311e-05,2]
[408218938,1773253839992,-478.0,9.315e-05,2]
[408218939,1773253840001,-500.0,9.315e-05,2]
[408218940,1773253840011,-2000.0,9.4e-05,2]
[408218941,1773253840020,-2000.0,9.4e-05,2]
[408218942,1773253840028,-325.21172943,9.446e-05,2]
[408218943,1773253840037,-273.3720358,9.462e-05,2]
[408218944,1773253840046,-499.999997,9.5e-05,2]
[408218946,1773253840056,-2000.0,9.5e-05,2]
[408218948,1773253840065,-2000.0,9.5e-05,2]
[408218949,1773253840074,-1983.371167,9.501e-05,2]
[408218950,1773253840084,-500.0,9.589e-05,2]
[408218951,1773253840093,-151.0,9.589e-05,2]
[408218952,1773253840102,-151.0,9.589e-05,2]
[408218953,1773253840111,-151.0,9.589e-05,2]
[408218954,1773253840121,-151.0,9.589e-05,2]
[408218955,1773253840130,-151.0,9.589e-05,2]
[408218956,1773253840139,-151.0,9.589e-05,2]
[408218957,1773253840149,-151.0,9.589e-05,2]
[408218958,1773253840158,-151.0,9.589e-05,2]
[408218959,1773253840167,-151.0,9.589e-05,2]
[408218960,1773253840176,-151.0,9.589e-05,2]
[408218961,1773253840185,-151.0,9.589e-05,2]
[408218962,1773253840194,-151.0,9.589e-05,2]
[408218963,1773253840203,-151.0,9.589e-05,2]
[408218964,1773253840212,-246.650553,9.589e-05,2]
[408218965,1773253840221,-2000.0,9.6e-05,2]
[408218966,1773253840230,-2000.0,9.6e-05,2]
[408218967,1773253840239,-599.60298507,9.643e-05,2]
[408218968,1773253840249,-2398.4119403,9.643e-05,2]
[408218969,1773253840258,-2000.0,9.7e-05,2]
[408218970,1773253840267,-2000.0,9.7e-05,2]
[408218971,1773253840276,-2500.0,9.764e-05,2]
[408218972,1773253840286,-733.0,9.784e-05,2]
[408218973,1773253840295,-436.0,9.784e-05,2]
[408218974,1773253840304,-2000.0,9.8e-05,2]
[408218976,1773253840313,-2000.0,9.8e-05,2]
[408218978,1773253840322,-209.457,9.807e-05,2]
[408218980,1773253840332,-150.35,9.807e-05,2]
[408218982,1773253840340,-150.891,9.807e-05,2]
[408218984,1773253840350,-1983.371167,9.844e-05,2]
[408218986,1773253840359,-500.0,9.863e-05,2]
[408218988,1773253840369,-2000.0,9.9e-05,2]
[408218990,1773253840378,-2000.0,9.9e-05,2]
[408218992,1773253840387,-500.0,0.0001,2]
[408218994,1773253840398,-500.0,0.0001,2]
[408218996,1773253840407,-500.0,0.0001,2]
[408218998,1773253840416,-500.0,0.0001,2]
[408219000,1773253840429,-2900.30502219,0.0001,2]
[408219002,1773253840438,-982.37078532,0.0001,2]
[408219004,1773253840447,-1925.12742755,0.0001,2]
[408219005,1773253840456,-1267.47,0.0001,5]
[408219007,1773253840465,-192.02749438,0.0001,7]
[408219009,1773253840474,-192.21952188,0.0001,2]
[408219011,1773253840483,-192.21952188,0.0001,2]
[408219013,1773253840492,-3773.13063099,0.0001,2]
[408219015,1773253840504,-373.91724553,0.0001,2]
[408219016,1773253840513,-151.0,0.0001,2]
[408219017,1773253840522,-151.0,0.0001,2]
[408219018,1773253840531,-151.0,0.0001,2]
[408219019,1773253840540,-151.0,0.0001,2]
[408219020,1773253840549,-151.0,0.0001,2]
[408219021,1773253840558,-151.0,0.0001,2]
[408219022,1773253840567,-151.0,0.0001,2]
[408219024,1773253840577,-151.0,0.0001,2]
[408219025,1773253840586,-151.0,0.0001,2]
[408219026,1773253840595,-151.0,0.0001,2]
[408219027,1773253840603,-250.64583484,0.0001,2]
[408219028,1773253840613,-151.0,0.0001,2]
[408219029,1773253840622,-151.0,0.0001,2]
[408219031,1773253840632,-151.0,0.0001,2]
[408219032,1773253840641,-151.0,0.0001,2]
[408219033,1773253840650,-151.0,0.0001,2]
[408219034,1773253840659,-151.0,0.0001,2]
[408219035,1773253840669,-151.0,0.0001,2]
[408219036,1773253840678,-151.0,0.0001,2]
[408219037,1773253840687,-151.0,0.0001,2]
[408219038,1773253840696,-151.0,0.0001,2]
[408219039,1773253840705,-2000.0,0.0001,2]
[408219040,1773253840714,-2000.0,0.0001,2]
[408219041,1773253840723,-2000.0,0.000101,2]
[408219042,1773253840733,-2000.0,0.000101,2]
[408219043,1773253840742,-500.0,0.00010137,2]
[408219044,1773253840751,-621.78829552,0.00010191,2]
[408219045,1773253840760,-2487.15318209,0.00010191,2]
[408219046,1773253840770,-864.0,0.00010243,2]
[408219047,1773253840778,-3000.0,0.00010312,2]
[408219048,1773253840787,-500.0,0.00010411,2]
[408219049,1773253840797,-500.0,0.00010685,2]
[408219050,1773253840806,-379.95045292,0.00010739,2]
[408219051,1773253840815,-2579.17784983,0.00010739,2]
[408219052,1773253840824,-3500.0,0.0001086,2]
[408219053,1773253840833,-187.4,0.000109,2]
[408219054,1773253840842,-25857.94117268,0.00010959,2]
[408219055,1773253840851,-166.0,0.00010959,2]
[408219056,1773253840860,-234.0,0.00010959,2]
[408219057,1773253840869,-500.0,0.00010959,2]
[408219058,1773253840885,-151.0,0.00010959,2]
[408219059,1773253840900,-151.0,0.00010959,2]
[408219061,1773253840914,-151.0,0.00010959,2]
[408219063,1773253840927,-151.0,0.00010959,2]
[408219064,1773253840941,-151.0,0.00010959,2]
[408219065,1773253840954,-151.0,0.00010959,2]
[408219066,1773253840970,-151.0,0.00010959,2]
[408219067,1773253840984,-151.0,0.00010959,2]
[408219068,1773253840998,-151.0,0.00010959,2]
[408219069,1773253841011,-151.0,0.00010959,2]
[408219070,1773253841025,-151.0,0.00010959,2]
[408219071,1773253841036,-151.0,0.00010959,2]
[408219072,1773253841050,-265.80147,0.00010959,2]
[408219073,1773253841063,-102523.8602497,0.00010959,2]
[408219074,1773253841076,-151.0,0.00010959,2]
[408219075,1773253841087,-151.0,0.00010959,2]
[408219076,1773253841100,-151.0,0.00010959,2]
[408219077,1773253841112,-151.0,0.00010959,2]
[408219078,1773253841125,-151.0,0.00010959,2]
[408219079,1773253841140,-151.0,0.00010959,2]
[408219080,1773253841156,-151.0,0.00010959,2]
[408219081,1773253841169,-151.0,0.00010959,2]
[408219082,1773253841182,-165.12651542,0.00010959,2]
[408219083,1773253841193,-151.0,0.00011,2]
[408219084,1773253841204,-151.0,0.00011,2]
[408219085,1773253841218,-151.0,0.00011,2]
[408219086,1773253841233,-500.0,0.00011233,2]
[408219087,1773253841244,-1000.0,0.00011267,2]
[408219088,1773253841256,-2674.60743027,0.00011287,2]
[408219089,1773253841268,-4000.0,0.00011408,2]
[408219090,1773253841281,-374.82029833,0.00011446,2]
[408219091,1773253841293,-218.14944676,0.00011446,2]
[408219092,1773253841303,-500.0,0.00011507,2]
[408219093,1773253841314,-500.0,0.00011781,2]
[408219094,1773253841326,-2773.56790519,0.00011835,2]
[408219095,1773253841338,-187.4,0.000119,2]
[408219096,1773253841350,-500.0,0.00012055,2]
[408219097,1773253841362,-500.0,0.00012329,2]
[408219098,1773253841374,-2876.18991768,0.00012383,2]
[408219099,1773253841385,-1000.0,0.00012394,2]
[408219100,1773253841401,-244.0,0.00012394,2]
[408219101,1773253841413,-500.0,0.00012603,2]
[408219102,1773253841426,-733.0,0.00012784,2]
[408219103,1773253841441,-436.0,0.00012784,2]
[408219104,1773253841453,-150.0,0.00012807,2]
[408219105,1773253841465,-500.0,0.00012877,2]
[408219106,1773253841477,-716.0,0.00012893,2]
[408219107,1773253841488,-716.0,0.00012893,2]
[408219108,1773253841500,-716.0,0.00012893,2]
[408219109,1773253841515,-716.0,0.00012893,2]
[408219110,1773253841528,-716.0,0.00012893,2]
[408219111,1773253841540,-765.0,0.00012893,2]
[408219112,1773253841553,-187.4,0.000129,2]
[408219113,1773253841565,-2982.60894464,0.00012931,2]
[408219114,1773253841579,-250.0,0.00013,2]
[408219115,1773253841591,-168.0,0.00013003,2]
[408219116,1773253841603,-168.0,0.00013087,2]
[408219117,1773253841615,-500.0,0.00013151,2]
[408219118,1773253841627,-168.0,0.00013186,2]
[408219119,1773253841639,-1938.55172988,0.00013424,2]
[408219120,1773253841651,-500.0,0.00013425,2]
[408219121,1773253841663,-424.42886723,0.00013446,2]
[408219122,1773253841676,-3092.96547559,0.00013479,2]
[408219123,1773253841688,-168.0,0.00013539,2]
[408219124,1773253841701,-1000.0,0.00013633,2]
[408219125,1773253841713,-492.0,0.00013633,2]
[408219126,1773253841724,-584.51,0.00013698,2]
[408219127,1773253841736,-584.51,0.00013698,2]
[408219128,1773253841750,-584.51,0.00013698,2]
[408219129,1773253841761,-584.51,0.00013698,2]
[408219130,1773253841774,-584.51,0.00013698,2]
[408219131,1773253841786,-584.51,0.00013698,2]
[408219132,1773253841798,-584.51,0.00013698,2]
[408219133,1773253841810,-584.51,0.00013698,2]
[408219134,1773253841822,-584.51,0.00013698,2]
[408219135,1773253841835,-584.51,0.00013698,2]
[408219136,1773253841848,-584.51,0.00013698,2]
[408219137,1773253841862,-584.51,0.00013698,2]
[408219138,1773253841874,-584.51,0.00013698,2]
[408219139,1773253841887,-584.51,0.00013698,2]
[408219140,1773253841899,-584.51,0.00013698,2]
[408219141,1773253841911,-584.51,0.00013698,2]
[408219142,1773253841924,-584.51,0.00013698,2]
[408219143,1773253841936,-584.51,0.00013698,2]
[408219144,1773253841948,-584.51,0.00013698,2]
[408219145,1773253841960,-584.51,0.00013698,2]
[408219146,1773253841972,-584.51,0.00013698,2]
[408219147,1773253841984,-584.51,0.00013698,2]
[408219148,1773253841996,-584.51,0.00013698,2]
[408219149,1773253842008,-584.68455909,0.00013698,2]
[408219150,1773253842020,-500.0,0.00013698,2]
[408219151,1773253842032,-500.0,0.00013698,2]
[408219152,1773253842044,-500.0,0.00013698,2]
[408219153,1773253842057,-500.0,0.00013698,2]
[408219154,1773253842069,-500.0,0.00013698,2]
[408219155,1773253842080,-500.0,0.00013698,2]
[408219156,1773253842092,-500.0,0.00013698,2]
[408219157,1773253842104,-500.0,0.00013698,2]
[408219158,1773253842116,-500.0,0.00013698,2]
[408219159,1773253842128,-500.0,0.00013698,2]
[408219160,1773253842140,-500.0,0.00013698,2]
[408219161,1773253842152,-443.08360957,0.00013698,2]
[408219162,1773253842164,-534.67418662,0.00013698,2]
[408219163,1773253842177,-500.0,0.00013698,2]
[408219164,1773253842190,-526.1269912,0.00013698,2]
[408219165,1773253842202,-2185.08,0.00013698,2]
[408219166,1773253842214,-2185.08,0.00013698,2]
[408219167,1773253842227,-2185.08,0.00013698,2]
[408219168,1773253842241,-2185.08,0.00013698,2]
[408219169,1773253842253,-2185.08,0.00013698,2]
[408219170,1773253842264,-2185.08,0.00013698,2]
[408219171,1773253842277,-2185.08,0.00013698,2]
[408219172,1773253842290,-2185.08,0.00013698,2]
[408219173,1773253842302,-2185.08,0.00013698,2]
[408219174,1773253842315,-2185.08,0.00013698,2]
[408219175,1773253842328,-2185.08,0.00013698,2]
[408219176,1773253842341,-2185.08,0.00013698,2]
[408219177,1773253842354,-2185.08,0.00013698,2]
[408219178,1773253842366,-2185.08,0.00013698,2]
[408219179,1773253842378,-2185.08,0.00013698,2]
[408219180,1773253842390,-2185.08,0.00013698,2]
[408219181,1773253842403,-2185.08,0.00013698,2]
[408219182,1773253842416,-2185.08,0.00013698,2]
[408219183,1773253842428,-2185.08,0.00013698,2]
[408219184,1773253842443,-2185.08,0.00013698,2]
[408219185,1773253842455,-2185.08,0.00013698,2]
[408219186,1773253842468,-2185.08,0.00013698,2]
[408219187,1773253842480,-2185.08,0.00013698,2]
[408219188,1773253842493,-2185.31671675,0.00013698,2]
[408219189,1773253842507,-475.135348,0.00013698,2]
[408219190,1773253842519,-500.0,0.00013698,2]
[408219191,1773253842531,-500.0,0.00013698,2]
[408219192,1773253842545,-500.0,0.00013698,2]
[408219193,1773253842557,-500.0,0.00013698,2]
[408219194,1773253842569,-500.0,0.00013698,2]
[408219195,1773253842581,-500.0,0.00013698,2]
[408219196,1773253842594,-500.0,0.00013698,2]
[408219197,1773253842606,-500.0,0.00013698,2]
[408219198,1773253842618,-500.0,0.00013698,2]
[408219199,1773253842630,-500.0,0.00013698,2]
[408219200,1773253842643,-500.0,0.00013698,2]
[408219201,1773253842655,-219.91725179,0.00013698,2]
[408219202,1773253842668,-500.0,0.00013698,2]
[408219203,1773253842680,-500.0,0.00013698,2]
[408219204,1773253842692,-500.0,0.00013698,2]
[408219205,1773253842704,-500.0,0.00013698,2]
[408219206,1773253842719,-500.0,0.00013698,2]
[408219207,1773253842731,-500.0,0.00013698,2]
[408219208,1773253842743,-500.0,0.00013698,2]
[408219209,1773253842755,-500.0,0.00013698,2]
[408219210,1773253842768,-500.0,0.00013698,2]
[408219211,1773253842779,-500.0,0.00013698,2]
[408219212,1773253842792,-500.0,0.00013698,2]
[408219213,1773253842804,-500.0,0.00013698,2]
[408219214,1773253842816,-191.08423059,0.00013698,2]
[408219215,1773253842829,-156.0,0.00013699,2]
[408219216,1773253842842,-179.9460162,0.00013699,2]
[408219217,1773253842854,-1000.0,0.00013699,2]
[408219218,1773253842865,-2512.237024,0.00013699,2]
[408219220,1773253842878,-500.0,0.00013699,2]
[408219221,1773253842890,-159.090731,0.00013699,2]
[408219222,1773253842901,-53974.8618236,0.00013699,2]
[408219224,1773253842913,-151.0,0.00013699,2]
[408219225,1773253842925,-151.0,0.00013699,2]
[408219226,1773253842938,-190.077399,0.00013699,2]
[408219227,1773253842950,-181.39289936,0.00013699,2]
[408219228,1773253842962,-500.0,0.00013699,2]
[408219229,1773253842974,-151.0,0.00013699,2]
[408219230,1773253842986,-151.0,0.00013699,2]
[408219231,1773253842999,-151.0,0.00013699,2]
[408219232,1773253843011,-151.0,0.00013699,2]
[408219233,1773253843023,-151.0,0.00013699,2]
[408219234,1773253843035,-151.0,0.00013699,2]
[408219236,1773253843047,-151.0,0.00013699,2]
[408219238,1773253843059,-151.0,0.00013699,2]
[408219239,1773253843400,-151.0,0.00013699,2]
[408219240,1773253843422,-151.0,0.00013699,2]
[408219241,1773253843433,-151.0,0.00013699,2]
[408219242,1773253843443,-151.0,0.00013699,2]
[408219243,1773253843452,-151.0,0.00013699,2]
[408219244,1773253843462,-151.0,0.00013699,2]
[408219245,1773253843473,-151.0,0.00013699,2]
[408219246,1773253843483,-151.0,0.00013699,2]
[408219247,1773253843493,-151.0,0.00013699,2]
[408219248,1773253843504,-151.0,0.00013699,2]
[408219249,1773253843513,-151.0,0.00013699,2]
[408219250,1773253843523,-151.0,0.00013699,2]
[408219251,1773253843533,-151.0,0.00013699,2]
[408219252,1773253843545,-230.4172997,0.00013699,2]
[408219253,1773253843554,-303.8357084,0.00013699,2]
[408219254,1773253843564,-500.19652236,0.00013699,2]
[408219255,1773253843573,-500.0,0.00013699,2]
[408219256,1773253843582,-158.60802246,0.00013699,2]
[408219257,1773253843592,-500.0,0.00013699,2]
[408219258,1773253843601,-529.11762788,0.00013699,2]
[408219259,1773253843611,-500.0,0.00013699,2]
[408219260,1773253843620,-500.0,0.00013699,2]
[408219261,1773253843631,-500.0,0.00013699,2]
[408219262,1773253843641,-500.0,0.00013699,2]
[408219263,1773253843653,-168.10277288,0.00013699,2]
[408219264,1773253843662,-500.0,0.00013699,2]
[408219265,1773253843671,-500.0,0.00013699,2]
[408219266,1773253843681,-151.0,0.00013699,2]
[408219267,1773253843692,-151.0,0.00013699,2]
[408219268,1773253843701,-151.0,0.00013699,2]
[408219269,1773253843711,-151.0,0.00013699,2]
[408219270,1773253843720,-151.0,0.00013699,2]
[408219271,1773253843730,-151.0,0.00013699,2]
[408219272,1773253843739,-151.0,0.00013699,2]
[408219273,1773253843749,-151.0,0.00013699,2]
[408219274,1773253843760,-151.0,0.00013699,2]
[408219275,1773253843771,-151.0,0.00013699,2]
[408219276,1773253843781,-500.0,0.00013699,2]
[408219277,1773253843790,-166.45626006,0.00013699,2]
[408219278,1773253843799,-593.20472,0.00013699,2]
[408219279,1773253843809,-500.0,0.00013699,2]
[408219280,1773253843818,-500.0,0.00013699,2]
[408219281,1773253843828,-500.0,0.00013699,2]
[408219282,1773253843837,-500.0,0.00013699,2]
[408219283,1773253843847,-500.0,0.00013699,2]
[408219284,1773253843856,-500.0,0.00013699,2]
[408219285,1773253843866,-158.99554995,0.00013699,2]
[408219286,1773253843875,-500.0,0.00013699,2]
[408219287,1773253843884,-161.06337246,0.00013699,2]
[408219288,1773253843894,-500.0,0.00013699,2]
[408219290,1773253843904,-500.0,0.00013699,2]
[408219291,1773253843914,-500.0,0.00013699,2]
[408219292,1773253843923,-500.0,0.00013699,2]
[408219293,1773253843933,-570.29757536,0.00013699,2]
[408219294,1773253843942,-500.0,0.00013699,2]
[408219295,1773253843952,-159.60032988,0.00013699,2]
[408219296,1773253843961,-500.0,0.00013699,2]
[408219297,1773253843971,-500.0,0.00013699,2]
[408219298,1773253843980,-161.84807716,0.00013699,2]
[408219299,1773253843990,-306.46453869,0.00013699,2]
[408219300,1773253843999,-500.0,0.00013699,2]
[408219302,1773253844009,-500.0,0.00013699,2]
[408219304,1773253844018,-500.0,0.00013699,2]
[408219306,1773253844027,-500.0,0.00013699,2]
[408219308,1773253844036,-500.0,0.00013699,2]
[408219309,1773253844045,-500.0,0.00013699,2]
[408219310,1773253844055,-500.0,0.00013699,2]
[408219311,1773253844064,-500.0,0.00013699,2]
[408219312,1773253844074,-164.86413739,0.00013699,2]
[408219313,1773253844083,-500.0,0.00013699,2]
[408219314,1773253844092,-500.0,0.00013699,2]
[408219315,1773253844102,-500.0,0.00013699,2]
[408219316,1773253844112,-500.0,0.00013699,2]
[408219317,1773253844121,-500.0,0.00013699,2]
[408219318,1773253844130,-500.0,0.00013699,2]
[408219319,1773253844140,-159.41661267,0.00013699,2]
[408219320,1773253844149,-500.0,0.00013699,2]
[408219321,1773253844158,-500.0,0.00013699,2]
[408219322,1773253844168,-500.0,0.00013699,2]
[408219323,1773253844177,-500.0,0.00013699,2]
[408219324,1773253844187,-500.0,0.00013699,2]
[408219325,1773253844196,-174.8122486,0.00013699,2]
[408219326,1773253844206,-500.0,0.00013699,2]
[408219327,1773253844215,-500.0,0.00013699,2]
[408219328,1773253844224,-534.39845647,0.00013699,2]
[408219329,1773253844234,-310.16561902,0.00013699,2]
[408219330,1773253844243,-500.0,0.00013699,2]
[408219331,1773253844252,-500.0,0.00013699,2]
[408219332,1773253844261,-500.0,0.00013699,2]
[408219333,1773253844270,-500.0,0.00013699,2]
[408219334,1773253844280,-500.0,0.00013699,2]
[408219335,1773253844290,-500.0,0.00013699,2]
[408219336,1773253844300,-500.0,0.00013699,2]
[408219337,1773253844309,-160.7322526,0.00013699,2]
[408219338,1773253844319,-500.0,0.00013699,2]
[408219339,1773253844329,-500.0,0.00013699,2]
[408219340,1773253844339,-500.0,0.00013699,2]
[408219341,1773253844349,-641.67402339,0.00013699,7]
[408219342,1773253844359,-245.06409633,0.00013699,2]
[408219343,1773253844369,-500.0,0.00013699,2]
[408219344,1773253844378,-1000.0,0.00013699,2]
[408219345,1773253844387,-500.0,0.00013699,2]
[408219346,1773253844397,-261.38591406,0.00013699,2]
[408219347,1773253844407,-187.4,0.000139,2]
[408219348,1773253844416,-500.0,0.00013973,2]
[408219349,1773253844428,-3207.40519818,0.00014027,2]
[408219350,1773253844437,-500.0,0.00014247,2]
[408219351,1773253844448,-393.75131618,0.00014247,2]
[408219352,1773253844458,-761.70809891,0.00014247,2]
[408219353,1773253844469,-304.48634314,0.00014247,2]
[408219354,1773253844479,-923.96820912,0.00014247,2]
[408219355,1773253844488,-1000.0,0.00014247,2]
[408219356,1773253844499,-1000.0,0.00014247,2]
[408219357,1773253844511,-1000.0,0.00014247,2]
[408219358,1773253844523,-1000.0,0.00014247,2]
[408219359,1773253844534,-1000.0,0.00014247,2]
[408219360,1773253844543,-1000.0,0.00014247,2]
[408219361,1773253844553,-1000.0,0.00014247,2]
[408219362,1773253844562,-1000.0,0.00014247,2]
[408219363,1773253844571,-1000.0,0.00014247,2]
[408219364,1773253844580,-1000.0,0.00014247,2]
[408219365,1773253844589,-1000.0,0.00014247,2]
[408219366,1773253844599,-1000.0,0.00014247,2]
[408219367,1773253844608,-1050.74080668,0.00014247,2]
[408219368,1773253844617,-1000.0,0.00014247,2]
[408219369,1773253844626,-1000.0,0.00014247,2]
[408219370,1773253844634,-618.61799756,0.00014247,2]
[408219371,1773253844643,-1000.0,0.00014247,2]
[408219372,1773253844652,-364.77219513,0.00014247,2]
[408219373,1773253844661,-1000.0,0.00014247,2]
[408219374,1773253844670,-467.87938631,0.00014247,2]
[408219375,1773253844679,-1000.0,0.00014247,2]
[408219376,1773253844687,-1000.0,0.00014247,2]
[408219377,1773253844696,-1000.0,0.00014247,2]
[408219378,1773253844704,-1000.0,0.00014247,2]
[408219379,1773253844714,-1000.0,0.00014247,2]
[408219380,1773253844723,-1000.0,0.00014247,2]
[408219381,1773253844732,-1000.0,0.00014247,2]
[408219382,1773253844742,-1000.0,0.00014247,2]
[408219383,1773253844752,-1000.0,0.00014247,2]
[408219384,1773253844764,-1000.0,0.00014247,2]
[408219385,1773253844774,-1000.0,0.00014247,2]
[408219386,1773253844784,-1000.0,0.00014247,2]
[408219387,1773253844795,-1000.0,0.00014247,2]
[408219388,1773253844804,-1000.0,0.00014247,2]
[408219389,1773253844813,-1000.0,0.00014247,2]
[408219390,1773253844822,-1000.0,0.00014247,2]
[408219391,1773253844831,-952.92375508,0.00014247,2]
[408219392,1773253844840,-1113.57168798,0.00014247,2]
[408219393,1773253844850,-1000.0,0.00014247,2]
[408219394,1773253844859,-1000.0,0.00014247,2]
[408219395,1773253844868,-1000.0,0.00014247,2]
[408219396,1773253844877,-1000.0,0.00014247,2]
[408219397,1773253844887,-229.91805756,0.00014247,2]
[408219398,1773253844896,-1000.0,0.00014247,2]
[408219399,1773253844905,-1000.0,0.00014247,2]
[408219400,1773253844915,-1000.0,0.00014247,2]
[408219401,1773253844924,-1000.0,0.00014247,2]
[408219402,1773253844934,-1000.0,0.00014247,2]
[408219403,1773253844943,-1000.0,0.00014247,2]
[408219404,1773253844953,-1000.0,0.00014247,2]
[408219405,1773253844965,-1000.0,0.00014247,2]
[408219406,1773253844975,-1000.0,0.00014247,2]
[408219407,1773253844984,-156.0,0.00014291,2]
[408219408,1773253844993,-598.70335581,0.00014473,2]
[408219409,1773253845003,-228.67540304,0.00014473,2]
[408219410,1773253845011,-200.0,0.00014499,2]
[408219411,1773253845021,-178.74609732,0.00014499,2]
[408219412,1773253845031,-4771.0417664,0.000145,2]
[408219413,1773253845050,-249903.85289437,0.000145,2]
[408219414,1773253845060,-2760.57351566,0.000145,2]
[408219415,1773253845071,-173870.61290501,0.000145,2]
[408219416,1773253845082,-2118.42227928,0.000145,2]
[408219417,1773253845276,-4746.42602275,7.298e-05,2]
[408219418,1773253845287,-253.57397725,7.298e-05,2]
[408219419,1773253845297,-15251.98789278,8.618e-05,2]
[408219420,1773253845307,-974.39194608,8.94e-05,2]
[408219421,1773253845318,-2215.27775639,9.034e-05,2]
[408219422,1773253845328,-1275.3611202,9.095e-05,2]
[408219423,1773253845337,-975.19590266,9.139e-05,2]
[408219424,1773253845346,-478.0,9.37e-05,2]
[408219425,1773253845356,-478.0,9.424e-05,2]
[408219426,1773253845366,-171.5203356,0.00012329,2]
[408219427,1773253845378,-882.6800012,0.00012329,2]
[408219428,1773253845389,-342.61999997,0.00012329,2]
[408219429,1773253845400,-3437.04966323,0.00012329,2]
[408219430,1773253845409,-408.10232166,0.00013698,2]
[408219431,1773253845421,-151.07300191,0.00013698,2]
[408219432,1773253845435,-279.20548699,0.000145,2]
[408219468,1773253846274,-501.3525372,9.479e-05,2]
[408219469,1773253846284,-60608.75220705,0.000145,2]
[408219482,1773255032231,-517.75085583,6.309e-05,2]
[408219484,1773255032242,-11.72532917,6.309e-05,2]
[408219486,1773255032252,-514.0,6.592e-05,2]
[408219488,1773255032261,-294.22129725,6.592e-05,2]
[408219490,1773255032270,-5000.0,6.692e-05,2]
[408219492,1773255032279,-73.13343424,6.76e-05,2]
[408219674,1773255038456,-184.79995865,6.76e-05,2]